fUST/lending_fUST_20260415
["ID","MTS","AMOUNT","RATE_DAILY","PERIOD"]
[420515672,1776205849795,-500.0,0.00011506,2]
[420515673,1776205849804,-3052.44,0.00011506,2]
[420515674,1776205849814,-1029.86,0.00011506,2]
[420515675,1776205849823,-500.0,0.00011506,2]
[420515676,1776205849833,-551.72,0.00011506,2]
[420515677,1776205849843,-4690.15,0.00011506,2]
[420515678,1776205849852,-500.0,0.00011506,2]
[420515679,1776205849861,-500.0,0.00011506,2]
[420515680,1776205849871,-519.8240142,0.00011506,2]
[420515681,1776205849880,-500.0,0.00011506,2]
[420515682,1776205849889,-500.0,0.00011506,2]
[420515683,1776205849898,-500.0,0.00011506,2]
[420515684,1776205849907,-500.0,0.00011506,2]
[420515685,1776205849917,-500.0,0.00011506,2]
[420515686,1776205849927,-500.0,0.00011506,2]
[420515687,1776205849936,-500.0,0.00011506,2]
[420515688,1776205849951,-500.0,0.00011506,2]
[420515689,1776205849964,-500.0,0.00011506,2]
[420515690,1776205849975,-500.0,0.00011506,2]
[420515691,1776205849990,-2600.23,0.00011506,2]
[420515692,1776205850011,-500.0,0.00011506,2]
[420515693,1776205850046,-500.0,0.00011506,2]
[420515694,1776205850138,-513.10954426,0.00011506,2]
[420515695,1776205850300,-500.0,0.00011506,2]
[420515696,1776205850378,-500.0,0.00011506,2]
[420515697,1776205850453,-3661.51,0.00011506,2]
[420515698,1776205850497,-1726.28,0.00011506,2]
[420515699,1776205850539,-5613.67,0.00011506,2]
[420515700,1776205850591,-500.0,0.00011506,2]
[420515701,1776205850653,-500.0,0.00011506,2]
[420515702,1776205850674,-500.0,0.00011506,2]
[420515703,1776205850692,-500.0,0.00011506,2]
[420515704,1776205850702,-391.99490482,0.00011506,2]
[420515705,1776205850725,-500.0,0.00011506,2]
[420515706,1776205850737,-2497.59,0.00011506,2]
[420515707,1776205850749,-500.0,0.00011506,2]
[420515708,1776205850761,-500.0,0.00011506,2]
[420515709,1776205850881,-557.6,0.00011506,2]
[420515710,1776205850893,-500.0,0.00011506,2]
[420515711,1776205850904,-409.28258539,0.00011506,2]
[420515712,1776205850913,-878.59,0.00011506,2]
[420515713,1776205850923,-5852.95,0.00011506,2]
[420515714,1776205850933,-500.0,0.00011506,2]
[420515715,1776205850944,-2419.11,0.00011506,2]
[420515716,1776205850956,-4173.56,0.00011506,2]
[420515717,1776205850967,-4080.19,0.00011506,2]
[420515718,1776205850977,-857.52,0.00011506,2]
[420515719,1776205850988,-5331.77,0.00011506,2]
[420515720,1776205850997,-4339.29,0.00011506,2]
[420515721,1776205851007,-500.0,0.00011506,2]
[420515722,1776205851020,-4685.82,0.00011506,2]
[420515723,1776205851033,-500.0,0.00011506,2]
[420515724,1776205851043,-510.85,0.00011506,2]
[420515725,1776205851054,-518.07,0.00011506,2]
[420515726,1776205851067,-516.46,0.00011506,2]
[420515727,1776205851077,-856.63,0.00011506,2]
[420515728,1776205851086,-503.44,0.00011506,2]
[420515729,1776205851097,-619.24,0.00011506,2]
[420515730,1776205851111,-500.0,0.00011506,2]
[420515731,1776205851120,-500.0,0.00011506,2]
[420515732,1776205851130,-3812.35,0.00011506,2]
[420515733,1776205851141,-500.0,0.00011506,2]
[420515734,1776205851153,-500.0,0.00011506,2]
[420515735,1776205851163,-3587.81,0.00011506,2]
[420515736,1776205851172,-500.0,0.00011506,2]
[420515737,1776205851185,-500.0,0.00011506,2]
[420515738,1776205851197,-500.0,0.00011506,2]
[420515739,1776205851207,-500.0,0.00011506,2]
[420515740,1776205851217,-608.32,0.00011506,2]
[420515741,1776205851228,-652.35,0.00011506,2]
[420515742,1776205851239,-1059.75,0.00011506,2]
[420515743,1776205851250,-9075.64,0.00011506,2]
[420515744,1776205851259,-5289.36,0.00011506,2]
[420515745,1776205851270,-4155.86,0.00011506,2]
[420515746,1776205851282,-500.0,0.00011506,2]
[420515747,1776205851293,-2410.26,0.00011506,2]
[420515748,1776205851303,-633.03,0.00011506,2]
[420515749,1776205851315,-528.41933352,0.00011506,2]
[420515750,1776205851325,-824.2,0.00011506,2]
[420515751,1776205851342,-20300.29,0.00011506,2]
[420515752,1776205851354,-500.0,0.00011506,2]
[420515753,1776205851364,-4685.34,0.00011506,2]
[420515754,1776205851376,-737.25,0.00011506,2]
[420515755,1776205851393,-5374.3,0.00011506,2]
[420515756,1776205851402,-500.0,0.00011506,2]
[420515757,1776205851412,-13873.87,0.00011506,2]
[420515758,1776205851427,-3211.02,0.00011506,2]
[420515759,1776205851441,-500.0,0.00011506,2]
[420515760,1776205851453,-626.61,0.00011506,2]
[420515761,1776205851462,-6585.9,0.00011506,2]
[420515762,1776205851483,-783.63,0.00011506,2]
[420515763,1776205851493,-2271.66,0.00011506,2]
[420515764,1776205851509,-500.0,0.00011506,2]
[420515765,1776205851530,-500.0,0.00011506,2]
[420515766,1776205851542,-10416.62,0.00011506,2]
[420515767,1776205851571,-4313.27,0.00011506,2]
[420515768,1776205851588,-823.23,0.00011506,2]
[420515769,1776205851609,-1000.0,0.00011521,2]
[420515770,1776205851641,-155.0,0.00011724,2]
[420515771,1776205851670,-1335.6901,0.0001178,2]
[420515772,1776205851704,-211.08331419,0.0001178,2]
[420515773,1776205851742,-500.0,0.0001178,2]
[420515774,1776205851785,-500.0,0.0001178,2]
[420515775,1776205851818,-500.0,0.0001178,2]
[420515776,1776205851844,-500.0,0.0001178,2]
[420515777,1776205851877,-500.0,0.0001178,2]
[420515778,1776205851901,-686.61,0.0001178,2]
[420515779,1776205851917,-656.7489,0.0001178,2]
[420515780,1776205851939,-500.0,0.0001178,2]
[420515781,1776205851955,-500.0,0.0001178,2]
[420515782,1776205851966,-500.0,0.0001178,2]
[420515783,1776205851980,-1032.06,0.0001178,2]
[420515784,1776205851993,-557.64091976,0.0001178,2]
[420515785,1776205852008,-500.0,0.0001178,2]
[420515786,1776205852019,-512.96510427,0.0001178,2]
[420515787,1776205852034,-500.0,0.0001178,2]
[420515788,1776205852049,-1070.03,0.0001178,2]
[420515789,1776205852058,-500.0,0.0001178,2]
[420515790,1776205852071,-500.0,0.0001178,2]
[420515791,1776205852082,-528.42,0.0001178,2]
[420515792,1776205852098,-500.0,0.0001178,2]
[420515793,1776205852109,-3052.44,0.0001178,2]
[420515794,1776205852119,-1029.86,0.0001178,2]
[420515795,1776205852132,-500.0,0.0001178,2]
[420515796,1776205852142,-551.72,0.0001178,2]
[420515797,1776205852151,-4690.15,0.0001178,2]
[420515798,1776205852163,-223.36306404,0.0001178,2]
[420515799,1776205852173,-500.0,0.0001178,2]
[420515800,1776205852183,-161.55557242,0.0001178,2]
[420515801,1776205852193,-500.0,0.0001178,2]
[420515802,1776205852202,-500.0,0.0001178,2]
[420515803,1776205852212,-544.39683919,0.0001178,2]
[420515804,1776205852222,-500.0,0.0001178,2]
[420515805,1776205852233,-500.0,0.0001178,2]
[420515806,1776205852242,-500.0,0.0001178,2]
[420515807,1776205852251,-500.0,0.0001178,2]
[420515808,1776205852260,-543.4188999,0.0001178,2]
[420515809,1776205852270,-2600.23,0.0001178,2]
[420515810,1776205852280,-500.0,0.0001178,2]
[420515811,1776205852289,-500.0,0.0001178,2]
[420515812,1776205852299,-615.84482892,0.0001178,2]
[420515813,1776205852308,-500.0,0.0001178,2]
[420515814,1776205852318,-3661.51,0.0001178,2]
[420515815,1776205852327,-1726.28,0.0001178,2]
[420515816,1776205852337,-5613.67,0.0001178,2]
[420515817,1776205852346,-500.0,0.0001178,2]
[420515818,1776205852355,-500.0,0.0001178,2]
[420515819,1776205852364,-510.94322579,0.0001178,2]
[420515820,1776205852374,-500.0,0.0001178,2]
[420515821,1776205852384,-500.0,0.0001178,2]
[420515822,1776205852394,-2457.38530077,0.0001178,2]
[420515823,1776205852858,-40.20469923,0.0001178,2]
[420515824,1776205852878,-321.34030077,0.0001178,2]
[420515825,1776205852981,-178.65969923,0.0001178,2]
[420515826,1776205853019,-527.55456562,0.0001178,2]
[420515827,1776205853047,-368.87459768,0.0001178,2]
[420515828,1776205853227,-188.72540232,0.0001178,2]
[420515829,1776205853254,-500.0,0.0001178,2]
[420515830,1776205853267,-718.28905249,0.0001178,2]
[420515831,1776205853296,-160.30094751,0.0001178,2]
[420515832,1776205853306,-500.0,0.0001178,2]
[420515833,1776205853318,-2419.11,0.0001178,2]
[420515834,1776205853340,-574.75884887,0.0001178,2]
[420515835,1776205853352,-3598.80115113,0.0001178,2]
[420515836,1776205853362,-1698.10102762,0.0001178,2]
[420515837,1776205853385,-2382.08897238,0.0001178,2]
[420515838,1776205853396,-857.52,0.0001178,2]
[420515839,1776205853405,-5331.77,0.0001178,2]
[420515840,1776205853422,-4339.29,0.0001178,2]
[420515841,1776205853433,-500.0,0.0001178,2]
[420515842,1776205853442,-4685.82,0.0001178,2]
[420515843,1776205853453,-165.40122247,0.0001178,2]
[420515844,1776205853464,-510.85,0.0001178,2]
[420515845,1776205853474,-518.07,0.0001178,2]
[420515846,1776205853485,-516.46,0.0001178,2]
[420515847,1776205853496,-856.63,0.0001178,2]
[420515848,1776205853506,-503.44,0.0001178,2]
[420515849,1776205853516,-619.24,0.0001178,2]
[420515850,1776205853526,-500.0,0.0001178,2]
[420515851,1776205853536,-500.0,0.0001178,2]
[420515852,1776205853547,-3812.35,0.0001178,2]
[420515853,1776205853556,-500.0,0.0001178,2]
[420515854,1776205853566,-3587.81,0.0001178,2]
[420515855,1776205853576,-500.0,0.0001178,2]
[420515856,1776205853585,-500.0,0.0001178,2]
[420515857,1776205853595,-500.0,0.0001178,2]
[420515858,1776205853604,-500.0,0.0001178,2]
[420515859,1776205853614,-608.32,0.0001178,2]
[420515860,1776205853623,-652.35,0.0001178,2]
[420515861,1776205853632,-1059.75,0.0001178,2]
[420515862,1776205853642,-9075.64,0.0001178,2]
[420515863,1776205853651,-5289.36,0.0001178,2]
[420515864,1776205853660,-777.87250195,0.0001178,2]
[420515865,1776205853672,-381.96055923,0.0001178,2]
[420515866,1776205853684,-1661.52715135,0.0001178,2]
[420515867,1776205853812,-1334.49978747,0.0001178,2]
[420515868,1776205853823,-500.0,0.0001178,2]
[420515869,1776205853833,-2410.26,0.0001178,2]
[420515870,1776205853842,-633.03,0.0001178,2]
[420515871,1776205853851,-824.2,0.0001178,2]
[420515872,1776205853860,-17486.78843251,0.0001178,2]
[420515873,1776205853892,-2813.50156749,0.0001178,2]
[420515874,1776205853902,-500.0,0.0001178,2]
[420515875,1776205853911,-3017.85790751,0.0001178,2]
[420515876,1776205853923,-1667.48209249,0.0001178,2]
[420515877,1776205853933,-737.25,0.0001178,2]
[420515878,1776205853942,-5374.3,0.0001178,2]
[420515879,1776205853952,-460.17101743,0.0001178,2]
[420515880,1776205853961,-13873.87,0.0001178,2]
[420515881,1776205853971,-3211.02,0.0001178,2]
[420515882,1776205853981,-560.26342021,0.0001178,2]
[420515883,1776205853991,-626.61,0.0001178,2]
[420515884,1776205854001,-6585.9,0.0001178,2]
[420515885,1776205854010,-304.39370877,0.0001178,2]
[420515886,1776205854023,-479.23629123,0.0001178,2]
[420515887,1776205854033,-1849.94879745,0.0001178,2]
[420515888,1776205854045,-421.71120255,0.0001178,2]
[420515889,1776205854054,-500.0,0.0001178,2]
[420515890,1776205854065,-521.94085397,0.0001178,2]
[420515891,1776205854078,-614.92732865,0.0001178,2]
[420515892,1776205854089,-9801.69267135,0.0001178,2]
[420515893,1776205854102,-4313.27,0.0001178,2]
[420515894,1776205854114,-823.23,0.0001178,2]
[420515895,1776205854129,-500.0,0.00011781,2]
[420515896,1776205854139,-645.0,0.0001184,2]
[420515897,1776205854158,-2208.0,0.0001184,2]
[420515898,1776205854171,-619.673,0.0001184,2]
[420515899,1776205854184,-441.0,0.0001184,2]
[420515900,1776205854207,-184.0,0.0001184,2]
[420515901,1776205854217,-252.64206926,0.00012,2]
[420515902,1776205854231,-303.41381065,0.00012,2]
[420515903,1776205854261,-220.93128495,0.00012,2]
[420515904,1776205854274,-160.0,0.00012,7]
[420515905,1776205854317,-2829.14716378,0.00012014,2]
[420515918,1776207032291,-4608.40368833,7.613e-05,2]
[420515920,1776207032306,-323.61548618,7.69e-05,2]
[420515948,1776207032684,-490.57899851,7.69e-05,2]
[420515949,1776207032695,-3326.88606441,7.69e-05,2]
[420515952,1776207038508,-858.9194509,7.69e-05,2]
[420515953,1776207038523,-2024.40314702,7.768e-05,2]
[420515954,1776207038535,-172.33410136,7.768e-05,2]
[420515955,1776207038551,-350.0,7.768e-05,2]
[420515956,1776207038564,-5000.0,7.789e-05,2]
[420515957,1776207038575,-605.54209139,8.662e-05,2]
[420515958,1776207038593,-271.14345991,8.662e-05,2]
[420515959,1776207038606,-501.42874223,8.663e-05,2]
[420515960,1776207038615,-158.25551961,8.663e-05,2]
[420515961,1776207038632,-500.0,8.663e-05,2]
[420515962,1776207038648,-500.0,8.663e-05,2]
[420515963,1776207038658,-500.0,8.663e-05,2]
[420515964,1776207038671,-500.0,8.663e-05,2]
[420515965,1776207038682,-500.0,8.663e-05,2]
[420515966,1776207038704,-501.43721353,8.663e-05,2]
[420515967,1776207038713,-500.0,8.663e-05,2]
[420515969,1776207038727,-506.66068339,8.663e-05,2]
[420515971,1776207038758,-256.51302524,8.663e-05,2]
[420515973,1776207038775,-500.0,8.663e-05,2]
[420515974,1776207038798,-500.08791599,8.663e-05,2]
[420515976,1776207038821,-500.0,8.663e-05,2]
[420515977,1776207038847,-502.90691355,8.663e-05,2]
[420515978,1776207038902,-500.8698544,8.663e-05,2]
[420515980,1776207039010,-501.42603253,8.663e-05,2]
[420515982,1776207039095,-46061.46291176,8.663e-05,2]
[420515984,1776207039118,-500.0,8.682e-05,2]
[420515986,1776207039150,-232.54117685,8.682e-05,2]
[420515988,1776207039174,-236.9662962,8.682e-05,2]
[420515990,1776207039189,-376.30175015,8.682e-05,2]
[420515992,1776207039198,-500.0,8.682e-05,2]
[420515994,1776207039207,-500.0,8.682e-05,2]
[420515996,1776207039226,-500.0,8.682e-05,2]
[420515998,1776207039236,-500.0,8.682e-05,2]
[420516000,1776207039245,-463.34324801,8.682e-05,2]
[420516002,1776207039255,-500.0,8.682e-05,2]
[420516004,1776207039277,-228001.83408444,8.683e-05,2]
[420516005,1776207039289,-54924.01162048,8.683e-05,2]
[420516014,1776207039419,-282.0,8.683e-05,2]
[420516115,1776207040794,-604.29213797,8.683e-05,2]
[420516118,1776207040822,-1480.8247454,8.683e-05,2]
[420516221,1776207044417,-250.820863,8.683e-05,2]
[420516223,1776207044460,-12337.5079093,8.683e-05,2]
[420516225,1776207044507,-1742.82715185,8.683e-05,2]
[420516228,1776207044701,-488.57025586,8.683e-05,2]
[420516232,1776207044802,-1933.86380039,8.683e-05,2]
[420516235,1776207044939,-380.183,8.683e-05,2]
[420516311,1776207046868,-2762.26156538,8.596e-05,2]
[420516313,1776207046884,-47180.86326349,8.683e-05,2]
[420516365,1776207649045,320.99944306,8.257e-05,30]
[420516366,1776207650365,320.99944306,8.298e-05,30]
[420516367,1776207651562,320.99944306,8.34e-05,30]
[420516368,1776207652807,320.99944306,8.399e-05,30]
[420516369,1776207654029,320.99944306,0.00019741,120]
[420516379,1776208028238,193.08772206,0.00019852,120]
[420516380,1776208074367,15000.0,0.00015,120]
[420516381,1776208232969,-517.75085583,7.374e-05,2]
[420516382,1776208232984,-1380.56441874,7.374e-05,2]
[420516383,1776208233001,-1849.66937949,7.374e-05,2]
[420516384,1776208233014,-525.0,7.448e-05,2]
[420516385,1776208233035,-181.28222363,7.561e-05,2]
[420516386,1776208233047,-5844.40278893,7.599e-05,2]
[420516624,1776208241024,-765.48898638,7.599e-05,2]
[420516626,1776208241036,-500.0,7.599e-05,2]
[420516627,1776208241057,-500.0,7.599e-05,2]
[420516628,1776208241072,-500.0,7.599e-05,2]
[420516630,1776208241086,-419.91596337,7.599e-05,2]
[420516633,1776208241448,-80.08403663,7.599e-05,2]
[420516634,1776208241458,-625.30840102,7.599e-05,2]
[420516635,1776208241467,-500.0,7.599e-05,2]
[420516636,1776208241486,-500.0,7.599e-05,2]
[420516637,1776208241501,-500.0,7.599e-05,2]
[420516638,1776208241510,-500.0,7.599e-05,2]
[420516640,1776208241533,-500.0,7.599e-05,2]
[420516641,1776208241543,-500.0,7.599e-05,2]
[420516642,1776208241553,-500.0,7.599e-05,2]
[420516643,1776208241577,-500.41495574,7.599e-05,2]
[420516644,1776208241586,-500.0,7.599e-05,2]
[420516645,1776208241605,-500.0,7.599e-05,2]
[420516646,1776208241625,-500.0,7.599e-05,2]
[420516647,1776208241643,-500.0,7.599e-05,2]
[420516648,1776208241672,-495.50410513,7.599e-05,2]
[420516649,1776208241696,-500.0,7.599e-05,2]
[420516650,1776208241728,-500.0,7.599e-05,2]
[420516651,1776208241746,-500.0,7.599e-05,2]
[420516652,1776208241791,-500.0,7.599e-05,2]
[420516653,1776208241823,-9942.46571394,7.6e-05,2]
[420516654,1776208241858,-32291.62175942,7.6e-05,2]
[420516655,1776208241873,-521.312,8.399e-05,2]
[420516656,1776208241891,-165.87640734,8.399e-05,2]
[420516657,1776208241915,-500.0,8.399e-05,2]
[420516658,1776208241932,-427.35721223,8.399e-05,2]
[420516659,1776208241952,-154.58313602,8.399e-05,2]
[420516660,1776208241963,-500.0,8.399e-05,2]
[420516661,1776208241984,-500.0,8.399e-05,2]
[420516662,1776208241996,-500.0,8.399e-05,2]
[420516663,1776208242008,-500.0,8.399e-05,2]
[420516664,1776208242024,-500.0,8.399e-05,2]
[420516665,1776208242036,-1265.06076503,8.4e-05,2]
[420516666,1776208242046,-2841.92804842,8.4e-05,2]
[420516667,1776208242060,-3146.33786652,8.4e-05,2]
[420516668,1776208242078,-3450.74768469,8.4e-05,2]
[420516669,1776208242088,-3181.2946761,8.4e-05,2]
[420516670,1776208242097,-1928.88002414,8.4e-05,2]
[420516671,1776208242115,-5154.32210821,8.4e-05,2]
[420516672,1776208242125,-4751.89525798,8.4e-05,2]
[420516673,1776208242134,-4255.57063736,8.4e-05,2]
[420516674,1776208242144,-4704.94637273,8.4e-05,2]
[420516675,1776208242163,-512.0666691,8.4e-05,2]
[420516676,1776208242174,-1604.99721533,8.424e-05,2]
[420516677,1776208242183,-762.20215938,8.467e-05,2]
[420516688,1776208243818,-842.79505595,8.467e-05,2]
[420516689,1776208243865,-500.0,8.467e-05,2]
[420516690,1776208243918,-1604.99721533,8.509e-05,2]
[420516692,1776208243973,-500.0,8.563e-05,2]
[420516694,1776208243996,-500.0,8.563e-05,2]
[420516695,1776208244015,-501.04502148,8.563e-05,2]
[420516697,1776208244024,-555.53628,8.586e-05,2]
[420516698,1776208244041,-1604.99721533,8.586e-05,2]
[420516699,1776208244058,-2731.70464214,8.653e-05,2]
[420516715,1776208246641,-371.03122366,8.653e-05,2]
[420516716,1776208246650,-161.3143201,8.653e-05,2]
[420516717,1776208246661,-152.0,8.689e-05,7]
[420516718,1776208246671,-152.0,8.689e-05,7]
[420516719,1776208246680,-152.0,8.689e-05,7]
[420516720,1776208246689,-152.0,8.689e-05,7]
[420516721,1776208246700,-500.0,8.741e-05,2]
[420516722,1776208246710,-152.0,8.777e-05,7]
[420516723,1776208246720,-152.0,8.784e-05,7]
[420516724,1776208246729,-152.0,8.784e-05,7]
[420516725,1776208246738,-152.0,8.784e-05,7]
[420516726,1776208246747,-152.0,8.784e-05,7]
[420516727,1776208246757,-152.0,8.785e-05,7]
[420516728,1776208246770,-152.0,8.785e-05,7]
[420516729,1776208246780,-152.0,8.785e-05,7]
[420516730,1776208246790,-152.0,8.786e-05,7]
[420516731,1776208246799,-152.0,8.786e-05,7]
[420516732,1776208246809,-152.0,8.786e-05,7]
[420516733,1776208246819,-152.0,8.798e-05,7]
[420516734,1776208246828,-152.0,8.798e-05,7]
[420516735,1776208246837,-152.0,8.798e-05,7]
[420516736,1776208246846,-152.0,8.798e-05,7]
[420516737,1776208246855,-152.0,8.798e-05,7]
[420516738,1776208246865,-5603.69784369,8.843e-05,2]
[420516739,1776208246874,-600.0,8.856e-05,2]
[420516740,1776208246884,-3910.4768827,8.938e-05,2]
[420516741,1776208247034,-555.53628,8.948e-05,2]
[420516742,1776208247044,-500.0,9.015e-05,2]
[420516743,1776208247053,-8265.3515245,9.034e-05,2]
[420516744,1776208247062,-152.0,9.034e-05,7]
[420516745,1776208247072,-152.0,9.034e-05,7]
[420516746,1776208247081,-152.0,9.034e-05,7]
[420516747,1776208247091,-152.0,9.034e-05,7]
[420516748,1776208247101,-152.0,9.034e-05,7]
[420516749,1776208247110,-152.0,9.034e-05,7]
[420516750,1776208247120,-152.0,9.034e-05,7]
[420516751,1776208247129,-1000.0,9.111e-05,2]
[420516752,1776208247139,-1990.2961948,9.123e-05,2]
[420516753,1776208247148,-150.331,9.149e-05,2]
[420516754,1776208247157,-150.388,9.149e-05,2]
[420516755,1776208247166,-150.362,9.149e-05,2]
[420516756,1776208247176,-1639.431,9.149e-05,2]
[420516757,1776208247186,-184.0,9.149e-05,2]
[420516758,1776208247195,-441.0,9.149e-05,2]
[420516759,1776208247204,-151.0,9.19e-05,2]
[420516760,1776208247213,-555.53628,9.309e-05,2]
[420516761,1776208247222,-152.0,9.399e-05,7]
[420516762,1776208247231,-152.0,9.399e-05,7]
[420516763,1776208247240,-152.0,9.399e-05,7]
[420516764,1776208247249,-213.91302388,9.561e-05,2]
[420516765,1776208247258,-1500.0,9.658e-05,2]
[420516766,1776208247267,-555.53628,9.671e-05,2]
[420516767,1776208247276,-368.0,9.7e-05,2]
[420516768,1776208247285,-720.0,9.741e-05,2]
[420516769,1776208247295,-154.4761226,9.993e-05,2]
[420516770,1776208247304,-60056.42946331,0.0001,5]
[420516771,1776208247313,-419.91550361,0.0001,2]
[420516772,1776208247322,-1500.0,0.0001,30]
[420516773,1776208247332,-183.77974232,0.0001,2]
[420516774,1776208247341,-151.0,0.0001,2]
[420516775,1776208247350,-151.0,0.0001,2]
[420516776,1776208247359,-151.0,0.0001,2]
[420516777,1776208247368,-151.0,0.0001,2]
[420516778,1776208247377,-151.0,0.0001,2]
[420516779,1776208247387,-151.0,0.0001,2]
[420516780,1776208247396,-151.0,0.0001,2]
[420516781,1776208247405,-151.0,0.0001,2]
[420516782,1776208247415,-151.0,0.0001,2]
[420516783,1776208247424,-229.80459918,0.0001,2]
[420516784,1776208247433,-555.53628,0.00010032,2]
[420516785,1776208247442,-267.61273966,0.00010276,2]
[420516786,1776208247451,-2150.738,0.00010276,2]
[420516787,1776208247461,-160.0,0.00010334,2]
[420516788,1776208247471,-555.53628,0.00010394,2]
[420516789,1776208247479,-238.73,0.00010685,2]
[420516790,1776208247489,-238.73,0.00010685,2]
[420516791,1776208247499,-864.0,0.00010715,2]
[420516792,1776208247508,-2230.315306,0.00010824,2]
[420516793,1776208247517,-2066.8697,0.00010958,2]
[420516794,1776208247526,-1666.99,0.00010958,2]
[420516795,1776208247535,-509.13758811,0.00010958,2]
[420516796,1776208247545,-601.44711443,0.00010958,2]
[420516797,1776208247556,-500.0,0.00010958,2]
[420516798,1776208247565,-500.0,0.00010958,2]
[420516799,1776208247575,-909.74,0.00010958,2]
[420516800,1776208247587,-933.36,0.00010958,2]
[420516801,1776208247598,-500.0,0.00010958,2]
[420516802,1776208247607,-551.18,0.00010958,2]
[420516803,1776208247617,-500.0,0.00010958,2]
[420516804,1776208247628,-918.38,0.00010958,2]
[420516805,1776208247641,-500.0,0.00010958,2]
[420516806,1776208247650,-500.0,0.00010958,2]
[420516807,1776208247662,-2543.7,0.00010958,2]
[420516808,1776208247678,-500.0,0.00010958,2]
[420516809,1776208247691,-500.0,0.00010958,2]
[420516810,1776208247701,-527.24863069,0.00010958,2]
[420516811,1776208247715,-3996.23,0.00010958,2]
[420516812,1776208247734,-500.0,0.00010958,2]
[420516813,1776208247743,-500.0,0.00010958,2]
[420516814,1776208247755,-500.0,0.00010958,2]
[420516815,1776208247781,-500.0,0.00010958,2]
[420516816,1776208247793,-500.0,0.00010958,2]
[420516817,1776208247814,-500.0,0.00010958,2]
[420516818,1776208247828,-500.0,0.00010958,2]
[420516819,1776208247847,-500.0,0.00010958,2]
[420516820,1776208247873,-500.0,0.00010958,2]
[420516821,1776208247890,-500.0,0.00010958,2]
[420516822,1776208247914,-500.0,0.00010958,2]
[420516823,1776208247931,-500.0,0.00010958,2]
[420516824,1776208247950,-500.0,0.00010958,2]
[420516825,1776208247962,-500.0,0.00010958,2]
[420516826,1776208247977,-437.77428626,0.00010958,2]
[420516827,1776208248000,-3123.75,0.00010958,2]
[420516828,1776208248010,-500.0,0.00010958,2]
[420516829,1776208248028,-1690.32,0.00010958,2]
[420516830,1776208248046,-500.0,0.00010958,2]
[420516831,1776208248056,-500.0,0.00010958,2]
[420516832,1776208248072,-500.0,0.00010958,2]
[420516833,1776208248092,-500.0,0.00010958,2]
[420516834,1776208248103,-500.0,0.00010958,2]
[420516835,1776208248114,-500.0,0.00010958,2]
[420516836,1776208248138,-272.68608158,0.00010958,2]
[420516837,1776208248153,-500.0,0.00010958,2]
[420516838,1776208248173,-4753.95,0.00010958,2]
[420516839,1776208248183,-235.13549561,0.00010958,2]
[420516847,1776209306475,949.94,0.00027397,120]
[420516860,1776209432681,-1605.92221814,6.736e-05,10]
[420516863,1776209432725,-441.36114199,6.736e-05,10]
[420516867,1776209432795,-283.624,6.736e-05,10]
[420516899,1776209438870,-431.87462275,6.736e-05,10]
[420516901,1776209438941,-2237.21801712,6.736e-05,10]
[420516903,1776209439000,-5000.0,6.804e-05,10]
[420516905,1776209439052,-517.0,6.873e-05,2]
[420516907,1776209439123,-173.37831868,6.908e-05,2]
[420516909,1776209439226,-879.4603811,8.639e-05,2]
[420516912,1776209439289,-204.58641604,8.908e-05,2]
[420516914,1776209439339,-160.0,9.142e-05,2]
[420516916,1776209439403,-452.82856414,9.339e-05,2]
[420516918,1776209439475,-184.0,9.439e-05,2]
[420516919,1776209439576,-441.0,9.439e-05,2]
[420516921,1776209439619,-26804.02830292,0.00010683,2]
[420516922,1776209439745,-1156.01829979,0.00010683,2]
[420516923,1776209439885,-12157.01418051,0.00010683,2]